fUST/lending_fUST_20260201
["ID","MTS","AMOUNT","RATE_DAILY","PERIOD"]
[404154011,1769884239145,-239.60909828,0.00026028,2]
[404154012,1769884239155,-200.0,0.0002654,14]
[404154013,1769884239164,-186.0,0.00026795,22]
[404154014,1769884239174,-1000.0,0.00027103,30]
[404154015,1769884239184,-791.0,0.00027103,30]
[404154016,1769884239193,-3162.0,0.00028211,2]
[404154017,1769884239207,-88184.16423315,0.000285,7]
[404154018,1769884239216,-174.0,0.00029534,35]
[404154019,1769884239227,-640.16772575,0.00029552,2]
[404154020,1769884239237,-1000.0,0.00029813,30]
[404154021,1769884239247,-1000.0,0.00029813,30]
[404154022,1769884239257,-19255.39314843,0.0003,10]
[404154023,1769884239268,-18181.99969639,0.0003,2]
[404154024,1769884239282,-228.49650163,0.00030019,2]
[404154025,1769884239292,-242.81521,0.000305,120]
[404154026,1769884239302,-200.0,0.000305,120]
[404154027,1769884239312,-3515.0,0.00030876,2]
[404154028,1769884239322,-150.0,0.00031131,30]
[404154029,1769884239332,-200.0,0.000322,120]
[404154030,1769884239341,-2115.8373,0.0003222,30]
[404154031,1769884239352,-1000.0,0.00032795,30]
[404154032,1769884239363,-1000.0,0.00032795,30]
[404154033,1769884239373,-579.0,0.00032795,30]
[404154034,1769884239384,-169.0,0.00032822,56]
[404154035,1769884239395,-232.43,0.00032877,10]
[404154036,1769884239405,-1270.7557,0.00032877,10]
[404154037,1769884239415,-111941.02015661,0.00033,2]
[404154038,1769884239426,-176380.84259235,0.00033,2]
[404154040,1769884239436,-4139.21535637,0.00033026,4]
[404154041,1769884239450,-647.89,0.000332,14]
[404154042,1769884239459,-163.48901555,0.000332,117]
[404154043,1769884239469,-2088.97431934,0.00033241,3]
[404154044,1769884239479,-735.11549668,0.00033241,3]
[404154049,1769884239578,-264895.97352642,0.00033789,120]
[404154050,1769884239588,-200.0,0.000339,120]
[404154051,1769884239597,-2968.23,0.000341,11]
[404154052,1769884239606,-608119.32844591,0.000344,10]
[404154053,1769884239615,-1600.0,0.00035,30]
[404154054,1769884239625,-400.0,0.00035302,11]
[404154055,1769884239634,-1001.860426,0.000354,21]
[404154057,1769884239645,-200.0,0.000356,120]
[404154059,1769884239655,-1000.0,0.000359,21]
[404154061,1769884239665,-1000.0,0.00036074,30]
[404154063,1769884239674,-1000.0,0.00036074,30]
[404154065,1769884239684,-1000.0,0.00036074,30]
[404154067,1769884239693,-205.27402056,0.0003621,2]
[404154068,1769884239706,-266.98854847,0.0003624,2]
[404154070,1769884239715,-18594.1094417,0.00036248,15]
[404154072,1769884239724,-493.42376623,0.00036385,3]
[404154074,1769884239734,-1000.0,0.000364,21]
[404154076,1769884239743,-150.0,0.00036953,30]
[404154078,1769884239753,-273.82022084,0.00036999,120]
[404154081,1769884239762,-2044.48449799,0.00037,2]
[404154084,1769884239783,-165.72413869,0.00037,120]
[404154086,1769884239793,-200.0,0.000373,120]
[404154088,1769884239802,-637.64,0.000374,30]
[404154090,1769884239812,-1021.16292499,0.000378,2]
[404154092,1769884239822,-1017.6284559,0.00038,30]
[404154094,1769884239832,-155.0,0.00038301,110]
[404154096,1769884239843,-313.50975452,0.0003867,120]
[404154098,1769884239853,-152.38,0.00038796,120]
[404154100,1769884239863,-10185.12655556,0.00038875,60]
[404154102,1769884239872,-152.38,0.00038896,120]
[404154104,1769884239882,-152.38,0.00038996,120]
[404154106,1769884239892,-393.14873141,0.00039,120]
[404154108,1769884239902,-6461.10889186,0.00039,120]
[404154110,1769884239912,-343.06353,0.00039,120]
[404154112,1769884239922,-178.92208645,0.00039081,10]
[404154114,1769884239932,-157.43607312,0.00039081,10]
[404154116,1769884239943,-152.38,0.00039096,120]
[404154118,1769884239957,-152.38,0.00039196,120]
[404154120,1769884239967,-152.38,0.00039296,120]
[404154122,1769884239978,-152.38,0.00039396,120]
[404154124,1769884239988,-152.38,0.00039496,120]
[404154126,1769884239997,-152.38,0.00039596,120]
[404154128,1769884240008,-154.8822299,0.0003966,2]
[404154130,1769884240017,-1000.0,0.00039682,60]
[404154132,1769884240027,-1000.0,0.00039682,60]
[404154135,1769884240037,-1000.0,0.00039682,60]
[404154137,1769884240046,-715.0,0.00039682,60]
[404154139,1769884240056,-152.38,0.00039696,120]
[404154141,1769884240065,-1152.30190635,0.00039765,2]
[404154143,1769884240074,-152.38,0.00039796,120]
[404154145,1769884240083,-544.15859094,0.00039877,120]
[404154147,1769884240092,-152.38,0.00039896,120]
[404154149,1769884240102,-158.7,0.000399,7]
[404154151,1769884240111,-276.06830334,0.00039912,2]
[404154153,1769884240120,-152.38,0.00039996,120]
[404154154,1769884240129,-500.0,0.0004,2]
[404154155,1769884240139,-1137.12849492,0.0004,30]
[404154156,1769884240150,-1126.27759483,0.0004,120]
[404154157,1769884240162,-697.80045304,0.0004,120]
[404154158,1769884240171,-278.0529537,0.0004,10]
[404154159,1769884240181,-500.0,0.0004,120]
[404154160,1769884240190,-254.51529886,0.0004,30]
[404154161,1769884240204,-282.30564137,0.0004,30]
[404154163,1769884240215,-1104.00944916,0.0004,120]
[404154165,1769884240224,-898.50953732,0.0004,30]
[404154167,1769884240234,-338.4957373,0.0004,120]
[404154169,1769884240243,-481.75203294,0.0004,120]
[404154170,1769884240253,-152.38,0.00040096,120]
[404154172,1769884240264,-152.38,0.00040196,120]
[404154175,1769884240275,-152.38,0.00040296,120]
[404154177,1769884240289,-411.29370293,0.00040315,2]
[404154179,1769884240302,-152.38,0.00040396,120]
[404154181,1769884240311,-152.38,0.00040496,120]
[404154183,1769884240322,-152.38,0.00040596,120]
[404154185,1769884240332,-637.64,0.000406,30]
[404154186,1769884240345,-152.38,0.00040696,120]
[404154188,1769884240355,-152.38,0.00040796,120]
[404154190,1769884240364,-152.38,0.00040896,120]
[404154192,1769884240373,-528.29,0.00040993,120]
[404154194,1769884240382,-545.8,0.00040993,120]
[404154196,1769884240391,-152.38,0.00040996,120]
[404154198,1769884240400,-948.28,0.00041096,120]
[404154200,1769884240410,-402.48,0.00041096,120]
[404154202,1769884240419,-152.38,0.00041096,120]
[404154204,1769884240428,-218.36867811,0.000411,120]
[404154206,1769884240437,-218.36,0.000411,120]
[404154208,1769884240448,-169.84230519,0.000411,120]
[404154210,1769884240457,-169.84230519,0.000411,120]
[404154212,1769884240469,-169.84230519,0.000411,120]
[404154214,1769884240479,-169.84230519,0.000411,120]
[404154216,1769884240489,-169.84230519,0.000411,120]
[404154218,1769884240498,-169.84,0.000411,120]
[404154220,1769884240507,-156.29280142,0.000411,120]
[404154222,1769884240516,-156.29280142,0.000411,120]
[404154224,1769884240526,-156.29280142,0.000411,120]
[404154225,1769884240535,-156.29280142,0.000411,120]
[404154227,1769884240544,-156.29280142,0.000411,120]
[404154229,1769884240554,-156.29280142,0.000411,120]
[404154231,1769884240563,-156.29280142,0.000411,120]
[404154233,1769884240572,-156.29280142,0.000411,120]
[404154235,1769884240582,-156.29,0.000411,120]
[404154237,1769884240591,-164.10744149,0.000411,120]
[404154239,1769884240600,-164.10744149,0.000411,120]
[404154242,1769884240610,-164.10744149,0.000411,120]
[404154244,1769884240619,-164.10744149,0.000411,120]
[404154246,1769884240630,-164.10744149,0.000411,120]
[404154247,1769884240640,-164.10744149,0.000411,120]
[404154250,1769884240649,-164.10744149,0.000411,120]
[404154252,1769884240659,-164.10744149,0.000411,120]
[404154254,1769884240668,-164.10744149,0.000411,120]
[404154255,1769884240677,-164.10744149,0.000411,120]
[404154257,1769884240690,-164.10744149,0.000411,120]
[404154259,1769884240703,-164.10744149,0.000411,120]
[404154261,1769884240713,-164.10744149,0.000411,120]
[404154263,1769884240723,-164.10744149,0.000411,120]
[404154265,1769884240732,-164.10744149,0.000411,120]
[404154267,1769884240742,-164.10744149,0.000411,120]
[404154269,1769884240752,-164.10744149,0.000411,120]
[404154271,1769884240761,-164.10744149,0.000411,120]
[404154273,1769884240770,-164.10744149,0.000411,120]
[404154275,1769884240780,-164.1,0.000411,120]
[404154277,1769884240789,-164.32223238,0.000411,120]
[404154279,1769884240798,-164.32223238,0.000411,120]
[404154281,1769884240807,-164.32223238,0.000411,120]
[404154283,1769884240817,-164.32223238,0.000411,120]
[404154285,1769884240826,-164.32223238,0.000411,120]
[404154287,1769884240836,-164.32223238,0.000411,120]
[404154289,1769884240845,-164.32223238,0.000411,120]
[404154291,1769884240856,-164.32223238,0.000411,120]
[404154293,1769884240865,-164.32,0.000411,120]
[404154295,1769884240874,-172.538344,0.000411,120]
[404154297,1769884240883,-172.538344,0.000411,120]
[404154299,1769884240893,-172.538344,0.000411,120]
[404154301,1769884240902,-172.538344,0.000411,120]
[404154303,1769884240912,-172.538344,0.000411,120]
[404154305,1769884240921,-172.538344,0.000411,120]
[404154307,1769884240930,-172.538344,0.000411,120]
[404154309,1769884240939,-172.538344,0.000411,120]
[404154311,1769884240951,-172.538344,0.000411,120]
[404154313,1769884240961,-172.538344,0.000411,120]
[404154315,1769884240970,-172.538344,0.000411,120]
[404154317,1769884240979,-172.538344,0.000411,120]
[404154319,1769884240988,-172.538344,0.000411,120]
[404154321,1769884240997,-172.538344,0.000411,120]
[404154323,1769884241006,-172.538344,0.000411,120]
[404154325,1769884241015,-172.538344,0.000411,120]
[404154327,1769884241025,-172.538344,0.000411,120]
[404154329,1769884241034,-172.538344,0.000411,120]
[404154331,1769884241044,-172.538344,0.000411,120]
[404154333,1769884241052,-172.53,0.000411,120]
[404154335,1769884241062,-152.38,0.00041196,120]
[404154337,1769884241071,-17809.32,0.00041239,29]
[404154339,1769884241079,-152.38,0.00041296,120]
[404154341,1769884241090,-152.38,0.00041396,120]
[404154343,1769884241100,-152.38,0.00041496,120]
[404154345,1769884241109,-200.0,0.00041535,30]
[404154347,1769884241118,-150.0,0.00041539,30]
[404154349,1769884241127,-500.0,0.00041539,120]
[404154351,1769884241137,-520.11533154,0.00041539,120]
[404154354,1769884241149,-1588222.5325684,0.00041539,20]
[404154356,1769884241166,-1361204.89867159,0.00041539,20]
[404154364,1769884241229,-1263.39273621,0.00017355,2]
[404154366,1769884241239,-6624.30726379,0.00041539,20]
[404154368,1769884241250,-3857.78088543,0.00041539,20]
[404154370,1769884241262,-84396.00000001,0.00041539,20]
[404154372,1769884241273,-900.0,0.00041539,20]
[404154374,1769884241285,-931.44507695,0.00041539,20]
[404154376,1769884241298,-37666.74676362,0.00041539,20]
[404154399,1769884241680,-2e-08,0.00041539,20]
[404154400,1769884241692,-512.3801944,0.00041539,20]
[404154446,1769884243966,-355.94165587,0.00041539,20]
[404154448,1769884245133,-382.71030593,0.00041539,20]
[404154449,1769884245148,-435.0,0.00041539,20]
[404154452,1769884245165,-43200.0,0.00041539,20]
[404154454,1769884245177,-43349.29055396,0.00041539,20]
[404154455,1769884245193,-6057.85017759,0.00041539,20]
[404154456,1769884245209,-500.16552,0.00041539,20]
[404154457,1769884245221,-7186.78748604,0.00041539,20]
[404154458,1769884245239,-5700.00000083,0.00041539,20]
[404154459,1769884245252,-792.31526139,0.00041539,20]
[404154472,1769884245699,-1805.92423623,0.00041539,20]
[404154475,1769884245715,-42124.51752595,0.00041539,20]
[404154476,1769884245729,-11492.36107234,0.00041539,20]
[404154477,1769884245867,-3248.84891869,0.00041539,20]
[404154478,1769884352790,343.38365008,0.00014999,2]
[404154479,1769884352832,500.0,0.00014999,2]
[404154480,1769884352891,500.0,0.00014999,2]
[404154481,1769884352947,457.41117959,0.00014999,2]
[404154484,1769884443826,500.0,0.00014999,2]
[404154485,1769884443886,500.0,0.00014999,2]
[404154486,1769884504349,455.53719436,0.00013273,2]
[404154487,1769884504712,500.0,0.00013273,2]
[404154488,1769884504826,500.0,0.00013273,2]
[404154489,1769884687823,-5000000.0,0.00036064,20]
[404154490,1769884701777,-3850737.25257249,0.00036064,20]
[404154491,1769884701807,-1068.3761739,0.00036064,60]
[404154492,1769884701835,-144603.4532755,0.00036064,90]
[404154493,1769884701872,-10945.13303889,0.00036064,120]
[404154494,1769884701902,-511.00652224,0.00036064,30]
[404154495,1769884701932,-150.0,0.00036064,30]
[404154496,1769884701964,-500.0,0.00036064,120]
[404154497,1769884701997,-520.11533154,0.00036064,120]
[404154498,1769884702028,-500.0,0.00036064,120]
[404154499,1769884702056,-500.0,0.00036064,120]
[404154500,1769884702085,-500.0,0.00036064,120]
[404154501,1769884702119,-500.0,0.00036064,120]
[404154502,1769884702147,-500.0,0.00036064,120]
[404154503,1769884702176,-459.93000001,0.00036064,120]
[404154504,1769884702322,-420.29165592,0.00036064,120]
[404154505,1769884702356,-496.47127165,0.00036064,120]
[404154506,1769884702945,180.71022885,0.00036064,120]
[404154507,1769884722761,-1401.44736494,0.00036064,7]
[404154508,1769884722793,-229.36779338,0.00036064,15]
[404154509,1769884722825,-244.46833849,0.00036064,10]
[404154510,1769884722856,-197.73258194,0.00036064,12]
[404154511,1769884722887,-4582.9333741,0.00036064,7]
[404154512,1769884722920,-1112.54676894,0.00036064,10]
[404154513,1769884722954,-2744.54061378,0.00036064,7]
[404154514,1769884722985,-2808.02892676,0.00036064,7]
[404154515,1769884723015,-400.72369513,0.00036064,7]
[404154516,1769884723044,-200.0,0.00036064,10]
[404154517,1769884723073,-498.0,0.00036064,7]
[404154518,1769884723103,-1565.33447862,0.00036064,14]
[404154519,1769884723145,-156.42852073,0.00036064,7]
[404154520,1769884723175,-826.52346607,0.00036064,15]
[404154521,1769884723203,-1546.13759588,0.00036064,15]
[404154522,1769884723231,-2548.13239333,0.00036064,7]
[404154523,1769884723261,-178.88882308,0.00036064,7]
[404154524,1769884723289,-158.0,0.00036064,10]
[404154525,1769884723317,-343.71459689,0.00036064,10]
[404154526,1769884723345,-1181.60690741,0.00036064,15]
[404154527,1769884723374,-71008.89133514,0.00036064,7]
[404154528,1769884723404,-1020.59119455,0.00036064,7]
[404154529,1769884723445,-245.21753242,0.00036064,10]
[404154530,1769884723480,-150.0,0.00036064,7]
[404154533,1769884865305,-524.2214709,0.00015342,2]
[404154535,1769884867946,-154.54,0.00015342,2]
[404154536,1769884904362,1444.22275194,0.00036064,30]
[404154541,1769885047831,500.0,0.00013273,2]
[404154542,1769885047872,1000.0,0.00013821,2]
[404154543,1769885047921,1500.0,0.00014368,2]
[404154545,1769885070312,170.83593845,0.00036075,120]
[404154546,1769885070758,170.83593845,0.00036075,120]
[404154550,1769885111535,500.0,0.00013273,2]
[404154551,1769885111575,1000.0,0.00013821,2]
[404154552,1769885111618,1500.0,0.00014368,2]
[404154553,1769885111716,2131.25658532,0.00014916,2]
[404154554,1769885117963,500.0,0.00013273,2]
[404154555,1769885118023,1000.0,0.00013821,2]
[404154556,1769885118055,368.75341468,0.00014368,2]
[404154557,1769885118083,1131.24658532,0.00014368,2]
[404154558,1769885118129,1330.5351028,0.00014916,2]
[404154559,1769885119990,303.02799168,0.00013673,2]
[404154562,1769885165297,-49.5085291,0.00015342,2]
[404154563,1769885165320,-150.0,0.00015884,2]
[404154564,1769885165344,-42.16979192,0.00016526,2]
[404154565,1769885165379,478.56465499,0.00036075,120]
[404154566,1769885166725,-152.15411431,0.00016526,2]
[404154567,1769885167142,642.77260598,0.00036075,120]
[404154568,1769885167499,500.0,0.00013273,2]
[404154569,1769885167562,1000.0,0.00013821,2]
[404154570,1769885167614,500.0,0.00014368,2]
[404154571,1769885168878,-152.63050372,0.00016526,2]
[404154572,1769885169506,500.0,0.00036075,120]
[404154573,1769885169781,500.0,0.00036075,120]
[404154574,1769885170038,500.0,0.00036075,120]
[404154575,1769885170496,500.0,0.00036075,120]
[404154576,1769885170744,500.0,0.00036075,120]
[404154577,1769885171002,500.0,0.00036075,120]
[404154578,1769885171262,500.0,0.00036075,120]
[404154579,1769885171537,500.0,0.00036075,120]
[404154580,1769885171567,-272.54134027,0.00016526,2]
[404154581,1769885171779,500.0,0.00036075,120]
[404154582,1769885172073,500.0,0.00036075,120]
[404154583,1769885172326,500.0,0.00036075,120]
[404154584,1769885172639,500.0,0.00036075,120]
[404154585,1769885172902,500.0,0.00036075,120]
[404154586,1769885173107,500.0,0.00036075,120]
[404154587,1769885173347,500.0,0.00036075,120]
[404154588,1769885173694,500.0,0.00036075,120]
[404154589,1769885173924,500.0,0.00036075,120]
[404154590,1769885174155,500.0,0.00036075,120]
[404154591,1769885174440,500.0,0.00036075,120]
[404154592,1769885174701,500.0,0.00036075,120]
[404154593,1769885174935,500.0,0.00036075,120]
[404154594,1769885175168,500.0,0.00036075,120]
[404154595,1769885175413,561.60640808,0.00036075,120]
[404154597,1769885190256,170.83593844,0.00036075,120]
[404154598,1769885195410,-622.86830244,0.00015342,2]
[404154599,1769885197025,-284.31209463,0.00015342,2]
[404154600,1769885199724,-357.68759965,0.00015342,2]
[404154601,1769885199764,1557.45579472,0.00012057,2]
[404154602,1769885204207,435.55053109,0.00036075,120]
[404154603,1769885204376,-177.13169756,0.00015342,2]
[404154604,1769885207020,-283.33788778,0.00015342,2]
[404154606,1769885215006,196.315833,0.00016772,120]
[404154607,1769885216497,5000.0,0.00015342,2]
[404154608,1769885223363,500.41302693,0.00013273,2]
[404154609,1769885223399,555.37804867,0.00036075,120]
[404154610,1769885225290,942.14117835,0.00015342,2]
[404154611,1769885225311,4057.85882165,0.00015342,2]
[404154613,1769885230116,-74.69241794,0.00015342,2]
[404154614,1769885230137,-41.50424978,0.00016526,2]
[404154615,1769885230156,-196.315833,0.00016772,2]
[404154616,1769885230176,-196.315833,0.00016772,61]
[404154617,1769885230196,-500.0,0.00017453,2]
[404154618,1769885230353,-503.4201334,0.00017454,2]
[404154619,1769885231256,500.0,0.00013273,2]
[404154620,1769885231300,777.03547313,0.00013821,2]
[404154621,1769885232136,500.0,0.00036075,120]
[404154622,1769885255886,-188.23056669,0.00016534,2]
[404154623,1769885259941,-252.00030572,0.00016534,2]
[404154624,1769885263036,-253.20621505,0.00016534,2]
[404154625,1769885267460,-761.03147338,0.00016534,2]
[404154626,1769885274254,1700.74385881,0.00036075,20]
[404154627,1769885274570,666.22635544,0.00036075,20]
[404154628,1769885277681,-307.315714,0.00016534,2]
[404154629,1769885279140,-197.38282009,0.00016534,2]
[404154630,1769885280714,-198.0,0.00016534,2]
[404154631,1769885285510,-335.27133247,0.00016534,2]
[404154632,1769885286990,-596.49243369,0.00016534,2]
[404154634,1769885291559,-169.67213584,0.00016534,2]
[404154635,1769885292186,154.34386926,0.00012057,2]
[404154636,1769885293066,-322.77325592,0.00016534,2]
[404154637,1769885295139,-225.54373952,0.00016534,2]
[404154638,1769885296690,-1178.86807847,0.00016534,2]
[404154639,1769885298905,-14.21192916,0.00016534,2]
[404154640,1769885298933,-174.52804174,0.00016701,2]
[404154641,1769885302479,-511.58016873,0.00016701,2]
[404154642,1769885304196,1888.0,0.00036075,30]
[404154643,1769885305011,-199.67986037,0.00016701,2]
[404154644,1769885308903,-279.42094264,0.00016701,2]
[404154645,1769885309293,500.0,0.00036075,120]
[404154646,1769885309544,500.0,0.00036075,120]
[404154647,1769885309797,526.99657286,0.00036075,120]
[404154648,1769885310263,158.77207635,0.00036075,120]
[404154649,1769885310350,-332.89401969,0.00016701,2]
[404154650,1769885310625,158.77207635,0.00036075,120]
[404154651,1769885316097,250.0,0.00036075,30]
[404154652,1769885316694,259.25,0.00036075,30]
[404154653,1769885317305,259.25,0.00036075,30]
[404154654,1769885334220,-300.0,0.00016534,2]
[404154655,1769885343389,501.52215443,0.00013273,2]
[404154656,1769885343571,500.0,0.00013273,2]
[404154657,1769885346134,504.58587945,0.00013273,2]
[404154658,1769885346726,501.84108282,0.00013273,2]
[404154659,1769885347082,504.36727375,0.00013273,2]
[404154660,1769885351613,602.34025745,0.00013273,2]
[404154661,1769885352671,500.52410142,0.00013273,2]
[404154662,1769885353821,500.5843316,0.00013273,2]
[404154663,1769885354118,395.00675504,0.00013273,2]
[404154664,1769885354141,106.02178055,0.00013273,2]
[404154665,1769885354442,500.98228606,0.00013273,2]
[404154666,1769885354882,500.90147035,0.00013273,2]
[404154667,1769885357270,500.0,0.00013273,2]
[404154668,1769885357760,500.0,0.00013273,2]
[404154669,1769885359125,-118.79479496,0.00016534,2]
[404154670,1769885359146,-200.17639237,0.00016618,2]
[404154671,1769885359167,-181.02881267,0.00016701,2]
[404154672,1769885359783,300.0,0.00013673,2]
[404154673,1769885360614,501.0748173,0.00013273,2]
[404154674,1769885360917,504.27176123,0.00013273,2]
[404154675,1769885366637,500.6294263,0.00013273,2]
[404154676,1769885381388,168.00764664,0.00036103,120]
[404154678,1769885410306,500.38548006,0.00013273,2]
[404154679,1769885410560,507.14889108,0.00013273,2]
[404154680,1769885410716,500.42745581,0.00013273,2]
[404154682,1769885410894,2000.0,0.00036103,30]
[404154683,1769885411523,2074.0,0.00036103,30]
[404154684,1769885413010,250.0,0.00036103,30]
[404154685,1769885413683,250.0,0.00036103,30]
[404154686,1769885413929,151.0,0.00036103,30]
[404154687,1769885414344,250.0,0.00036103,30]
[404154688,1769885414554,151.0,0.00036103,30]
[404154689,1769885415102,250.0,0.00036103,30]
[404154690,1769885415187,151.0,0.00036103,30]
[404154691,1769885415624,250.0,0.00036103,30]
[404154692,1769885420832,343.97160006,0.00036103,30]
[404154693,1769885429514,151.0,0.00036103,30]
[404154694,1769885430127,151.0,0.00036103,30]
[404154695,1769885430745,151.0,0.00036103,30]
[404154698,1769885431346,151.0,0.00036103,30]
[404154741,1769885431771,-889.14991763,0.00016533,2]
[404154743,1769885431781,-661.0,0.00016533,2]
[404154746,1769885431792,-5647.4508679,0.00016601,2]
[404154748,1769885431803,-436.53881715,0.000167,2]
[404154750,1769885431818,-679.34118285,0.000167,2]
[404154752,1769885431830,-40.65881715,0.000167,2]
[404154753,1769885431843,-1159.34118285,0.000167,2]
[404154757,1769885431855,-948.5752655,0.00016701,2]
[404154758,1769885431875,-465.60265351,0.00016701,2]
[404154759,1769885431889,-129.79219485,0.00016701,2]
[404154760,1769885431901,-1002.74838333,0.00017106,2]
[404154761,1769885431912,-300.0,0.00017278,2]
[404154762,1769885431924,-132.03942182,0.000173,2]
[404154763,1769885431938,-780.95057818,0.000173,2]
[404154764,1769885431949,-300.0,0.00017452,2]
[404154765,1769885431960,-300.0,0.00017452,2]
[404154766,1769885431971,-300.0,0.00017452,2]
[404154767,1769885431983,-300.0,0.00017452,2]
[404154769,1769885431993,-1496.5798666,0.00017454,2]
[404154770,1769885432003,-163.81,0.00017692,3]
[404154771,1769885432013,-491.46,0.00017692,3]
[404154772,1769885432023,-1001.0736353,0.000177,2]
[404154773,1769885432033,-3268.21639496,0.000177,2]
[404154774,1769885432045,-1400.42915382,0.000177,2]
[404154775,1769885432084,151.0,0.00036103,30]
[404154776,1769885432565,151.0,0.00036103,30]
[404154777,1769885433686,151.0,0.00036103,30]
[404154778,1769885434322,151.0,0.00036103,30]
[404154779,1769885434953,151.0,0.00036103,30]
[404154780,1769885435599,151.0,0.00036103,30]
[404154781,1769885436208,151.0,0.00036103,30]
[404154814,1769885438089,-3238.74439699,0.000177,2]
[404154817,1769885438103,-42092.61005423,0.000177,2]
[404154819,1769885438114,-500.0,0.000177,2]
[404154821,1769885438128,-500.0,0.000177,2]
[404154823,1769885438139,-500.0,0.000177,2]
[404154826,1769885438150,-500.0,0.000177,2]
[404154828,1769885438161,-500.0,0.000177,2]
[404154830,1769885438172,-331.37621961,0.000177,2]
[404154832,1769885438183,-500.0,0.000177,2]
[404154834,1769885438194,-500.0,0.000177,2]
[404154836,1769885438205,-500.0,0.000177,2]
[404154838,1769885438216,-500.0,0.000177,2]
[404154840,1769885438226,-500.0,0.000177,2]
[404154842,1769885438237,-500.0,0.000177,2]
[404154844,1769885438247,-500.0,0.000177,2]
[404154847,1769885438258,-500.0,0.000177,2]
[404154849,1769885438270,-500.0,0.000177,2]
[404154864,1769885438409,-500.0,0.000177,2]
[404154867,1769885438426,-500.0,0.000177,2]
[404154869,1769885438438,-500.0,0.000177,2]
[404154871,1769885438447,-500.0,0.000177,2]
[404154873,1769885438457,-500.0,0.000177,2]
[404154875,1769885438466,-500.0,0.000177,2]
[404154877,1769885438476,-500.0,0.000177,2]
[404154879,1769885438485,-300.14855773,0.000177,2]
[404154880,1769885438495,-500.0,0.000177,2]
[404154882,1769885438504,-534.41317595,0.000177,2]
[404154884,1769885438513,-500.0,0.000177,2]
[404154886,1769885438523,-500.0,0.000177,2]
[404154888,1769885438532,-8.52250793,0.000177,2]
[404154892,1769885438561,-491.47749207,0.000177,2]
[404154895,1769885438571,-500.0,0.000177,2]
[404154897,1769885438581,-500.0,0.000177,2]
[404154899,1769885438591,-500.0,0.000177,2]
[404154901,1769885438600,-500.0,0.000177,2]
[404154902,1769885438609,-500.0,0.000177,2]
[404154904,1769885438619,-500.0,0.000177,2]
[404154906,1769885438634,-566.57855994,0.000177,2]
[404154908,1769885438643,-500.0,0.000177,2]
[404154910,1769885438652,-500.0,0.000177,2]
[404154912,1769885438663,-500.0,0.000177,2]
[404154914,1769885438673,-500.0,0.000177,2]
[404154916,1769885438682,-294.0556082,0.000177,2]
[404154919,1769885438695,-205.9443918,0.000177,2]
[404154921,1769885438706,-500.0,0.000177,2]
[404154923,1769885438716,-500.0,0.000177,2]
[404154924,1769885438726,-500.0,0.000177,2]
[404154927,1769885438736,-500.0,0.000177,2]
[404154929,1769885438747,-500.0,0.000177,2]
[404154931,1769885438756,-500.0,0.000177,2]
[404154933,1769885438766,-500.0,0.000177,2]
[404154934,1769885438777,-500.0,0.000177,2]
[404154936,1769885438787,-500.0,0.000177,2]
[404154938,1769885438796,-500.0,0.000177,2]